bitfinex/quotes_BTCUSD_20240607
["timestamp","ask_amount","ask_price","bid_price","bid_amount"]
[1717761943854,0.14441893,71865.0,71849.0,0.0754]
[1717761944266,0.14441893,71865.0,71861.0,0.014]
[1717761944869,0.14441893,71865.0,71860.0,0.1]
[1717761945024,0.14441893,71865.0,71860.0,0.239159]
[1717761945427,0.16441893,71865.0,71861.0,0.00861371]
[1717761945664,0.14441893,71865.0,71861.0,0.139157]
[1717761945835,0.14441893,71865.0,71862.0,0.1]
[1717761946036,0.02,71863.0,71862.0,0.10861308]
[1717761946238,0.14441893,71863.0,71862.0,0.10861308]
[1717761946603,0.26441893,71863.0,71862.0,0.10861308]
[1717761946810,0.26641893,71863.0,71862.0,0.10861308]
[1717761946976,0.26441893,71863.0,71862.0,0.00861308]
[1717761947213,0.26441893,71863.0,71862.0,0.02261308]
[1717761947214,0.26641893,71863.0,71862.0,0.02261308]
[1717761947359,0.26641893,71863.0,71862.0,0.014]
[1717761947575,0.26641893,71863.0,71855.0,0.1]
[1717761947576,0.02,71856.0,71855.0,0.1]
[1717761947730,0.16441893,71856.0,71855.0,0.1]
[1717761947935,0.32031893,71856.0,71855.0,0.10789358]
[1717761949225,0.49721893,71856.0,71855.0,0.10789358]
[1717761949432,0.49721893,71856.0,71855.0,0.12894259]
[1717761949433,0.49921893,71856.0,71855.0,0.12894259]
[1717761949985,0.49921893,71856.0,71855.0,0.02894259]
[1717761950303,0.49921893,71856.0,71855.0,0.04294259]
[1717761950510,0.49921893,71856.0,71855.0,0.02894259]
[1717761950723,0.49921893,71856.0,71855.0,0.01494259]
[1717761951013,0.49921893,71856.0,71855.0,0.02894259]
[1717761951220,0.49921893,71856.0,71855.0,0.028]
[1717761952243,0.49921893,71856.0,71855.0,0.014]
[1717761952656,0.60921893,71856.0,71855.0,0.028]
[1717761953071,0.60921893,71856.0,71848.0,0.1]
[1717761953072,0.232,71849.0,71848.0,0.1]
[1717761953241,0.71571893,71849.0,71848.0,0.1]
[1717761955161,0.15441893,71849.0,71848.0,0.314]
[1717761955721,0.15441893,71849.0,71848.0,0.209]
[1717761955927,0.15441893,71849.0,71848.0,2.109]
[1717761956149,0.15441893,71849.0,71848.0,1.6134]
[1717761956513,0.15541893,71849.0,71848.0,1.6274]
[1717761957112,0.15441893,71849.0,71848.0,1.6134]
[1717761957517,0.15541893,71849.0,71848.0,1.6254]
[1717761957728,0.15441893,71849.0,71848.0,1.6134]
[1717761958280,0.15541893,71849.0,71848.0,1.6254]
[1717761958693,0.3378936,71849.0,71848.0,1.6254]
[1717761959102,0.15641893,71849.0,71848.0,1.7394]
[1717761959750,0.15441893,71849.0,71848.0,1.7134]
[1717761959946,0.15441893,71849.0,71848.0,1.7224]
[1717761960147,0.15641893,71849.0,71848.0,1.7224]
[1717761960350,0.15641893,71849.0,71848.0,2.03771747]
[1717761960351,0.14541893,71849.0,71848.0,2.03771747]
[1717761960548,0.14441893,71849.0,71848.0,2.12871747]
[1717761960865,0.14641893,71849.0,71848.0,2.14271747]
[1717761961079,0.14541893,71849.0,71848.0,2.14271747]
[1717761961281,0.14541893,71849.0,71848.0,1.94271747]
[1717761961486,0.14541893,71849.0,71848.0,2.04271747]
[1717761961699,0.14641893,71849.0,71848.0,2.24271747]
[1717761961946,0.14641893,71849.0,71848.0,2.27571747]
[1717761962357,0.14541893,71849.0,71848.0,2.26171747]
[1717761962565,0.14641893,71849.0,71848.0,2.27571747]
[1717761963295,0.14541893,71849.0,71848.0,2.27571747]
[1717761963506,0.14641893,71849.0,71848.0,2.25094103]
[1717761963711,0.14541893,71849.0,71848.0,2.25994103]
[1717761963922,0.14441893,71849.0,71848.0,2.23694103]
[1717761964339,0.14641893,71849.0,71848.0,2.27394103]
[1717761964543,0.14541893,71849.0,71848.0,2.27394103]
[1717761964959,0.14641893,71849.0,71848.0,2.27394103]
[1717761965582,0.14541893,71849.0,71848.0,2.24994103]
[1717761965784,0.14641893,71849.0,71848.0,2.26394103]
[1717761966219,0.14541893,71849.0,71848.0,2.56261921]
[1717761966420,0.14541893,71849.0,71848.0,2.54861921]
[1717761966421,0.14441893,71849.0,71848.0,2.54861921]
[1717761966628,0.14541893,71849.0,71848.0,2.56261921]
[1717761966806,0.14641893,71849.0,71848.0,2.56261921]
[1717761967027,0.14541893,71849.0,71848.0,2.56261921]
[1717761967226,0.14541893,71849.0,71848.0,2.54861921]
[1717761967525,0.14541893,71849.0,71848.0,2.80731921]
[1717761967947,0.14641893,71849.0,71848.0,2.80731921]
[1717761968976,0.14541893,71849.0,71848.0,2.79331921]
[1717761969377,0.14641893,71849.0,71848.0,2.80731921]
[1717761969779,0.14641893,71849.0,71848.0,2.79331921]
[1717761969780,0.14441893,71849.0,71848.0,2.79331921]
[1717761970000,0.14541893,71849.0,71848.0,2.79331921]
[1717761970214,0.14641893,71849.0,71848.0,2.88870699]
[1717761970498,0.14541893,71849.0,71848.0,2.55261921]
[1717761970665,0.14541893,71849.0,71848.0,2.59989298]
[1717761970870,0.14541893,71849.0,71848.0,2.53861921]
[1717761971075,0.14641893,71849.0,71848.0,2.55261921]
[1717761971274,0.14541893,71849.0,71848.0,2.32961921]
[1717761971475,0.14541893,71849.0,71848.0,2.22961921]
[1717761971678,0.15641893,71849.0,71848.0,2.22961921]
[1717761971881,0.15641893,71849.0,71848.0,2.12961921]
[1717761972059,0.15641893,71849.0,71848.0,0.1]
[1717761972261,0.01,71842.0,71840.0,0.1]
[1717761972442,0.14641893,71849.0,71836.0,0.04085536]
[1717761972443,0.01,71838.0,71836.0,0.04085536]
[1717761972809,0.01,71838.0,71835.0,0.07222824]
[1717761973177,0.01,71836.0,71830.0,0.07222824]
[1717761973385,0.01,71835.0,71830.0,0.07222824]
[1717761973799,0.01,71833.0,71830.0,0.07222824]
[1717761974231,0.14441893,71831.0,71830.0,0.07222824]
[1717761974546,0.14441893,71831.0,71830.0,0.08622824]
[1717761975151,0.14441893,71831.0,71830.0,0.17222824]
[1717761975590,0.14441893,71831.0,71830.0,0.07222824]
[1717761975791,0.14441893,71831.0,71830.0,0.1]
[1717761976146,0.15441893,71831.0,71830.0,0.1]
[1717761976555,0.15541893,71831.0,71830.0,0.101]
[1717761976764,0.15541893,71831.0,71830.0,0.001]
[1717761977181,0.15541893,71831.0,71823.0,0.08172124]
[1717761977182,0.14441893,71831.0,71823.0,0.08172124]
[1717761977543,0.14441893,71827.0,71826.0,0.01]
[1717761978315,0.14441893,71827.0,71824.0,0.0846266]
[1717761978508,0.14441893,71826.0,71824.0,0.0846266]
[1717761979172,0.14441893,71826.0,71823.0,0.010493]
[1717761979704,0.14441893,71826.0,71823.0,0.00991186]
[1717761979901,0.14441893,71826.0,71824.0,0.01050652]
[1717761980479,0.14441893,71826.0,71825.0,0.1584]
[1717761980741,0.14441893,71826.0,71825.0,0.2584]
[1717761980945,0.12883371,71826.0,71825.0,0.33017902]
[1717761981155,0.12883371,71826.0,71825.0,0.43113225]
[1717761981336,0.001,71827.0,71826.0,0.329525]
[1717761981496,0.01,71858.0,71829.0,0.01]
[1717761981702,0.00695989,71863.0,71844.0,0.07222824]
[1717761981703,0.14441893,71850.0,71844.0,0.07222824]
[1717761982103,0.14441893,71850.0,71845.0,0.01047986]
[1717761982761,0.14441893,71850.0,71842.0,0.1]
[1717761982876,0.14441893,71850.0,71843.0,0.023]
[1717761983076,0.14441893,71850.0,71843.0,0.0334824]
[1717761983492,0.14541893,71850.0,71843.0,0.0334824]
[1717761983755,0.15541893,71850.0,71843.0,0.0334824]
[1717761983919,0.14541893,71850.0,71843.0,0.0334824]
[1717761984152,0.14441893,71845.0,71842.0,0.001]
[1717761984358,0.14441893,71843.0,71842.0,0.001]
[1717761984561,0.14441893,71843.0,71842.0,0.00960922]
[1717761984733,0.14441893,71843.0,71836.0,0.1]
[1717761984961,0.14441893,71842.0,71835.0,0.17222824]
[1717761985165,0.14441893,71842.0,71837.0,0.00961557]
[1717761985374,0.14441893,71840.0,71838.0,0.01001131]
[1717761985522,0.14441893,71839.0,71836.0,0.1]
[1717761985728,0.14441893,71837.0,71836.0,0.1]
[1717761986446,0.15441893,71837.0,71830.0,0.07222824]
[1717761986615,0.14441893,71834.0,71830.0,0.07222824]
[1717761987201,0.14441893,71831.0,71826.0,0.1]
[1717761987409,0.14441893,71831.0,71829.0,0.07222824]
[1717761987609,0.14441893,71831.0,71824.0,0.14088161]
[1717761987610,0.14441893,71830.0,71824.0,0.14088161]
[1717761987811,0.14441893,71825.0,71823.0,0.00891186]
[1717761988079,0.14441893,71824.0,71823.0,0.00891186]
[1717761989599,0.14541893,71824.0,71823.0,0.02291186]
[1717761989796,0.14541893,71824.0,71823.0,0.04591186]
[1717761990231,0.14441893,71824.0,71823.0,0.00891186]
[1717761990356,0.14441893,71824.0,71823.0,0.01998126]
[1717761990357,0.14541893,71824.0,71823.0,0.01998126]
[1717761990978,0.14441893,71824.0,71823.0,0.01883071]
[1717761991304,0.14541893,71824.0,71823.0,0.01983071]
[1717761991463,0.15541893,71824.0,71823.0,0.01983071]
[1717761991670,0.14641893,71824.0,71823.0,0.03283071]
[1717761991878,0.14541893,71824.0,71823.0,0.03183071]
[1717761992082,0.14441893,71824.0,71823.0,0.01883071]
[1717761992525,0.14541893,71824.0,71823.0,0.03183071]
[1717761992785,0.15441893,71824.0,71823.0,0.01883071]
[1717761993359,0.15641893,71824.0,71823.0,0.03383071]
[1717761993584,0.14641893,71824.0,71823.0,0.03383071]
[1717761994293,0.15641893,71824.0,71823.0,0.03383071]
[1717761994498,0.14641893,71824.0,71823.0,0.03383071]
[1717761995109,0.14541893,71824.0,71823.0,0.11983071]
[1717761995308,0.14541893,71824.0,71823.0,0.18115273]
[1717761995539,0.14641893,71824.0,71823.0,0.13816885]
[1717761995737,0.14641893,71824.0,71823.0,0.16116885]
[1717761996019,0.14541893,71824.0,71823.0,0.14816885]
[1717761996230,0.14541893,71824.0,71823.0,0.22993155]
[1717761996401,0.14541893,71824.0,71823.0,0.14816885]
[1717761996603,0.14641893,71824.0,71823.0,0.16216885]
[1717761996801,0.14641893,71824.0,71823.0,0.14816885]
[1717761996802,0.14541893,71824.0,71823.0,0.14816885]
[1717761997010,0.14441893,71824.0,71823.0,0.14716885]
[1717761997768,0.14541893,71824.0,71823.0,0.14816885]
[1717761998427,0.14441893,71824.0,71823.0,0.14716885]
[1717761998649,0.14641893,71824.0,71823.0,0.16016885]
[1717761998870,0.14541893,71824.0,71823.0,0.25037222]
[1717761999096,0.14370744,71824.0,71823.0,0.25037222]
[1717761999312,0.14470744,71824.0,71823.0,0.16016885]
[1717762000052,0.14370744,71824.0,71823.0,0.13616885]
[1717762000237,0.14370744,71824.0,71823.0,0.19765472]
[1717762000439,0.14470744,71824.0,71823.0,0.03183071]
[1717762001036,0.14370744,71824.0,71823.0,0.03083071]
[1717762001443,0.14370744,71824.0,71823.0,0.03183071]
[1717762001444,0.14470744,71824.0,71823.0,0.03183071]
[1717762001801,0.14370744,71824.0,71823.0,0.03083071]
[1717762002213,0.14456744,71824.0,71823.0,0.03083071]
[1717762003634,0.14556744,71824.0,71823.0,0.03183071]
[1717762004009,0.14456744,71824.0,71823.0,0.01983071]
[1717762004219,0.14356744,71824.0,71823.0,0.01883071]
[1717762004419,0.14356744,71824.0,71823.0,0.03083071]
[1717762004628,0.14556744,71824.0,71823.0,0.03183071]
[1717762004882,0.14556744,71824.0,71823.0,0.0371699]
[1717762005082,0.14556744,71824.0,71823.0,0.03183071]
[1717762005909,0.16456744,71824.0,71823.0,0.01983071]
[1717762006329,0.16456744,71824.0,71823.0,0.03183071]
[1717762006330,0.16556744,71824.0,71823.0,0.03183071]
[1717762006540,0.15556744,71824.0,71823.0,0.02176131]
[1717762006747,0.14456744,71824.0,71823.0,0.00976131]
[1717762006942,0.15456744,71824.0,71823.0,0.00976131]
[1717762007147,0.15456744,71824.0,71823.0,0.02076131]
[1717762007148,0.15356744,71824.0,71823.0,0.02076131]
[1717762007298,0.15456744,71824.0,71823.0,0.02076131]
[1717762007505,0.16456744,71824.0,71823.0,0.00976131]
[1717762008257,0.16456744,71824.0,71823.0,0.02076131]
[1717762008607,0.16556744,71824.0,71823.0,0.02176131]
[1717762008834,0.16856744,71824.0,71823.0,0.02176131]
[1717762009034,0.16756744,71824.0,71823.0,0.02076131]
[1717762009973,0.16756744,71824.0,71823.0,0.00876131]
[1717762009974,0.16656744,71824.0,71823.0,0.00876131]
[1717762010470,0.16756744,71824.0,71823.0,0.01976131]
[1717762010692,0.16756744,71824.0,71823.0,0.00876131]
[1717762011155,0.14856744,71824.0,71823.0,0.28196131]
[1717762011367,0.14856744,71824.0,71823.0,0.38296131]
[1717762011368,0.14956744,71824.0,71823.0,0.38296131]
[1717762011591,0.14956744,71824.0,71823.0,0.505012]
[1717762011837,0.00586,71824.0,71823.0,0.46301495]
[1717762012070,0.00386,71824.0,71823.0,0.5393476]
[1717762012323,0.0149,71857.0,71827.0,0.163]
[1717762012562,0.0104454,71871.0,71827.0,0.163]
[1717762012563,0.14441893,71856.0,71855.0,0.07222824]
[1717762013052,0.14441893,71856.0,71855.0,0.20517087]
[1717762013708,0.14211661,71856.0,71855.0,0.20517087]
[1717762014103,0.14211661,71856.0,71855.0,0.27189857]
[1717762014311,0.14211661,71856.0,71855.0,0.26656735]
[1717762014825,0.14211661,71856.0,71855.0,0.20495096]
[1717762015461,0.14311661,71856.0,71855.0,0.20695096]
[1717762015743,0.14311661,71856.0,71855.0,0.22095096]
[1717762015937,0.14211661,71856.0,71855.0,0.21895096]
[1717762016229,0.14311661,71856.0,71855.0,0.22195096]
[1717762016407,0.14311661,71856.0,71855.0,0.14972272]
[1717762017068,0.14311661,71856.0,71855.0,0.04972272]
[1717762017246,0.14311661,71856.0,71855.0,0.14972272]
[1717762018273,0.14311661,71856.0,71855.0,0.04972272]
[1717762018505,0.14211661,71856.0,71855.0,0.11895096]
[1717762018643,0.14211661,71856.0,71855.0,0.20495096]
[1717762018865,0.14311661,71856.0,71855.0,0.20695096]
[1717762019084,0.14311661,71856.0,71855.0,0.22095096]
[1717762019286,0.14211661,71856.0,71855.0,0.20495096]
[1717762019810,0.14311661,71856.0,71855.0,0.20695096]
[1717762020412,0.14311661,71856.0,71855.0,0.14872272]
[1717762021208,0.14211661,71856.0,71855.0,0.14672272]
[1717762021436,0.14311661,71856.0,71855.0,0.14872272]
[1717762021857,0.14311661,71856.0,71855.0,0.04672272]
[1717762022046,0.14211661,71856.0,71855.0,0.04672272]
[1717762022254,0.14311661,71856.0,71855.0,0.04947326]
[1717762022790,0.14211661,71856.0,71855.0,0.03347326]
[1717762023237,0.14311661,71856.0,71855.0,0.04947326]
[1717762024421,0.14211661,71856.0,71855.0,0.03347326]
[1717762024640,0.14211661,71856.0,71855.0,0.04747326]
[1717762024848,0.14311661,71856.0,71855.0,0.04947326]
[1717762027247,0.14311661,71856.0,71855.0,0.02647326]
[1717762027248,0.16311661,71856.0,71855.0,0.02647326]
[1717762027456,0.16801661,71856.0,71855.0,0.02647326]
[1717762027675,0.16801661,71856.0,71855.0,0.002]
[1717762027884,0.16801661,71856.0,71838.0,0.0966045]
[1717762027885,0.01,71841.0,71838.0,0.0966045]
[1717762028086,0.14441893,71840.0,71839.0,0.43336945]
[1717762028292,0.15441893,71840.0,71839.0,0.00838571]
[1717762028710,0.15441893,71840.0,71829.0,0.216587]
[1717762028877,0.14441893,71832.0,71828.0,1.2454]
[1717762029097,0.14441893,71829.0,71828.0,1.2454]
[1717762029717,0.15441893,71829.0,71828.0,1.2454]
[1717762029890,0.15441893,71829.0,71823.0,0.08098955]
[1717762029891,0.01,71826.0,71823.0,0.00876131]
[1717762030090,0.14441893,71824.0,71823.0,0.00876131]
[1717762031237,0.14441893,71824.0,71823.0,0.02276131]
[1717762031430,0.14441893,71824.0,71823.0,0.04576131]
[1717762031584,0.14441893,71824.0,71823.0,0.03176131]
[1717762031946,0.14541893,71824.0,71823.0,0.04576131]
[1717762032355,0.14441893,71824.0,71823.0,0.03176131]
[1717762032763,0.15541893,71824.0,71823.0,0.03176131]
[1717762032966,0.15541893,71824.0,71823.0,0.00876131]
[1717762033219,0.16441893,71824.0,71823.0,0.00876131]
[1717762033422,0.14441893,71824.0,71823.0,0.00876131]
[1717762033801,0.14541893,71824.0,71823.0,0.00876131]
[1717762034276,0.001,71824.0,71823.0,1.48476131]
[1717762034513,0.001,71824.0,71823.0,1.63799231]
[1717762034714,0.001,71824.0,71823.0,1.67988646]
[1717762034919,0.01086,71856.0,71827.0,0.01]
[1717762034920,0.00086,71856.0,71827.0,0.01]
[1717762035122,0.14441893,71851.0,71841.0,0.07222824]
[1717762035397,0.14441893,71845.0,71842.0,0.03242885]
[1717762035597,0.14441893,71843.0,71842.0,0.03242885]
[1717762035819,0.14441893,71843.0,71842.0,0.023]
[1717762036023,0.14441893,71843.0,71834.0,0.1]
[1717762036024,0.14441893,71843.0,71835.0,0.023]
[1717762036222,0.14441893,71840.0,71836.0,0.00943647]
[1717762036463,0.14441893,71840.0,71837.0,0.023]
[1717762036650,0.14441893,71840.0,71838.0,0.00787577]
[1717762036862,0.14441893,71840.0,71839.0,0.023]
[1717762037104,0.01,71835.0,71834.0,0.1]
[1717762037336,0.01,71835.0,71828.0,0.479]
[1717762037337,0.01,71834.0,71833.0,0.1]
[1717762037542,0.14441893,71834.0,71833.0,0.1]
[1717762038023,0.14441893,71834.0,71833.0,0.3439]
[1717762038464,0.14441893,71834.0,71833.0,0.54636]
[1717762038689,0.14441893,71834.0,71833.0,0.58725892]
[1717762038910,0.14441893,71834.0,71833.0,0.54636]
[1717762039257,0.14441893,71834.0,71833.0,0.5872307]
[1717762039437,0.14441893,71834.0,71833.0,0.57250266]
[1717762039642,0.14441893,71834.0,71833.0,0.66921566]
[1717762039840,0.14441893,71834.0,71833.0,1.873742]
[1717762040024,0.14541893,71834.0,71833.0,1.887742]
[1717762040670,0.14541893,71834.0,71833.0,1.94909038]
[1717762040867,0.001,71834.0,71833.0,1.887742]
[1717762041078,0.001,71855.0,71838.0,0.139201]
[1717762041285,0.14441893,71854.0,71846.0,0.07222824]
[1717762041708,0.14441893,71854.0,71847.0,0.023]
[1717762042977,0.14441893,71854.0,71847.0,0.123]
[1717762043345,0.14441893,71854.0,71847.0,0.023]
[1717762043569,0.14541893,71854.0,71852.0,0.2366]
[1717762043701,0.14541893,71854.0,71853.0,0.123]
[1717762043907,0.14441893,71854.0,71853.0,0.123]
[1717762044306,0.14541893,71854.0,71853.0,0.123]
[1717762044882,0.001,71854.0,71853.0,1.507573]
[1717762045543,0.001,71854.0,71853.0,1.766573]
[1717762045768,0.001,71855.0,71854.0,0.139171]
[1717762045995,0.001,71855.0,71854.0,0.33439924]
[1717762046235,0.001,71855.0,71853.0,0.259]
[1717762046477,0.001,71855.0,71854.0,1.518036]
[1717762046684,0.001,71855.0,71854.0,1.59026424]
[1717762046866,0.001,71855.0,71854.0,1.49253324]
[1717762047084,0.001,71855.0,71854.0,1.39537724]
[1717762047323,0.001,71855.0,71854.0,1.51537724]
[1717762047556,0.002,71855.0,71854.0,1.79214519]
[1717762047794,0.002,71855.0,71854.0,1.75127724]
[1717762048272,0.002,71855.0,71854.0,1.85352454]
[1717762048499,0.00086,71856.0,71855.0,0.149169]
[1717762048720,0.00086,71856.0,71855.0,0.272169]
[1717762048921,0.00086,71856.0,71855.0,0.31297654]
[1717762049136,0.00086,71856.0,71855.0,3.97594354]
[1717762049882,0.00086,71856.0,71855.0,3.96594354]
[1717762050117,0.00086,71856.0,71855.0,2.96818854]
[1717762050353,0.00186,71856.0,71855.0,2.98218854]
[1717762050584,0.00186,71856.0,71855.0,2.9759692]
[1717762050768,0.00086,71856.0,71855.0,2.9859692]
[1717762050969,0.00086,71856.0,71855.0,2.9619692]
[1717762052195,0.00186,71856.0,71855.0,2.9759692]
[1717762052397,0.20086,71905.0,71876.0,0.07222824]
[1717762052621,0.14441893,71880.0,71876.0,0.07222824]
[1717762053017,0.14441893,71880.0,71869.0,0.1]
[1717762053231,0.14441893,71880.0,71877.0,0.00773562]
[1717762053395,0.14441893,71880.0,71869.0,0.12]
[1717762053595,0.14441893,71880.0,71878.0,0.00773435]
[1717762053807,0.14441893,71880.0,71876.0,0.014]
[1717762054009,0.14541893,71880.0,71876.0,0.028]
[1717762054220,0.14541893,71880.0,71877.0,0.00773685]
[1717762054446,0.14541893,71880.0,71877.0,0.07996509]
[1717762054653,0.14541893,71880.0,71877.0,0.10773685]
[1717762055308,0.14441893,71880.0,71877.0,0.10773685]
[1717762055704,0.14541893,71880.0,71878.0,0.014]
[1717762056115,0.14441893,71880.0,71879.0,0.00773432]
[1717762056489,0.14541893,71880.0,71877.0,0.014]
[1717762056911,0.14441893,71880.0,71869.0,0.505153]
[1717762057094,0.14441893,71880.0,71870.0,0.1]
[1717762057293,0.14441893,71880.0,71870.0,0.10632128]
[1717762057610,0.14441893,71880.0,71876.0,0.014]
[1717762057792,0.14441893,71880.0,71879.0,9.0]
[1717762057989,0.14441893,71880.0,71879.0,9.1]
[1717762058189,0.14441893,71880.0,71879.0,9.10630473]
[1717762058622,0.14441893,71880.0,71879.0,9.12030473]
[1717762059596,0.14441893,71880.0,71879.0,9.13430473]
[1717762060202,0.14441893,71880.0,71879.0,9.03430473]
[1717762060409,0.14441893,71880.0,71879.0,9.02030473]
[1717762060796,0.14441893,71880.0,71879.0,9.0]
[1717762061234,0.14441893,71880.0,71879.0,9.014]
[1717762062115,0.14441893,71880.0,71879.0,9.024]
[1717762062349,0.14441893,71880.0,71879.0,9.01]
[1717762062613,0.14441893,71880.0,71879.0,9.011]
[1717762062834,0.14441893,71880.0,71879.0,9.021]
[1717762063071,0.14441893,71880.0,71879.0,9.01]
[1717762063593,0.14441893,71880.0,71879.0,9.124]
[1717762064700,0.14441893,71880.0,71879.0,9.114]
[1717762064934,0.14441893,71880.0,71879.0,9.1]
[1717762065087,0.14441893,71880.0,71879.0,9.114]
[1717762065285,0.14441893,71880.0,71879.0,9.128]
[1717762065672,0.14441893,71880.0,71879.0,9.114]
[1717762066072,0.14441893,71880.0,71879.0,9.128]
[1717762066502,0.14441893,71880.0,71879.0,9.114]
[1717762066863,0.14441893,71880.0,71879.0,9.128]
[1717762067673,0.14441893,71880.0,71879.0,9.028]
[1717762067878,0.14441893,71880.0,71879.0,9.014]
[1717762068109,0.14441893,71880.0,71879.0,9.0]
[1717762068560,0.14441893,71880.0,71879.0,9.014]
[1717762068942,0.28353893,71880.0,71879.0,9.014]
[1717762069140,0.28353893,71880.0,71879.0,9.0]
[1717762069542,0.28353893,71880.0,71879.0,9.011]
[1717762069752,0.28353893,71880.0,71879.0,9.025]
[1717762069962,0.28353893,71880.0,71879.0,9.0]
[1717762070195,0.14441893,71880.0,71879.0,9.0]
[1717762071163,0.14541893,71880.0,71879.0,9.001]
[1717762071553,0.14441893,71880.0,71879.0,9.0]
[1717762071754,0.34441893,71880.0,71879.0,9.0]
[1717762072020,0.34541893,71880.0,71879.0,9.0]
[1717762072374,0.48353893,71880.0,71879.0,9.0]
[1717762072614,0.28353893,71880.0,71879.0,9.0]
[1717762072830,0.48353893,71880.0,71879.0,9.003]
[1717762073290,0.48453893,71880.0,71879.0,9.003]
[1717762073510,0.62973893,71880.0,71879.0,9.003]
[1717762074891,0.63073893,71880.0,71879.0,9.0]
[1717762075132,0.63173893,71880.0,71879.0,9.0]
[1717762075321,0.63273893,71880.0,71879.0,9.0]
[1717762075784,0.14419773,71880.0,71869.0,0.000946]
[1717762076005,0.1462,71880.0,71879.0,0.18]
[1717762076250,0.341002,71880.0,71879.0,0.18]
[1717762076470,0.342002,71880.0,71879.0,0.181]
[1717762076682,0.14012,71880.0,71879.0,0.181]
[1717762076895,0.001,71880.0,71879.0,0.181]
[1717762077721,0.1436129,71880.0,71879.0,0.18]
[1717762078215,0.1436129,71880.0,71879.0,0.28]
[1717762080660,0.1436129,71880.0,71879.0,0.18]
[1717762080861,0.1436129,71880.0,71879.0,0.19]
[1717762081667,0.1436129,71880.0,71879.0,0.199]
[1717762088215,0.2827329,71880.0,71879.0,0.199]
[1717762089895,0.2827329,71880.0,71879.0,0.20515973]
[1717762092966,0.2827329,71880.0,71879.0,0.199]
[1717762093791,0.14441893,71880.0,71879.0,0.019]
[1717762093989,0.11291893,71880.0,71879.0,0.019]
[1717762095400,0.25203893,71880.0,71879.0,0.019]
[1717762095606,0.67647993,71880.0,71879.0,0.019]
[1717762095969,0.67647993,71880.0,71869.0,0.000946]
[1717762095970,0.13914,71870.0,71869.0,0.000946]
[1717762096219,0.28355893,71870.0,71869.0,0.000946]
[1717762097913,0.70803893,71870.0,71869.0,0.000946]
[1717762098854,0.71103893,71870.0,71869.0,0.000946]
[1717762099333,0.71303893,71870.0,71869.0,0.000946]
[1717762099491,0.70803893,71870.0,71869.0,0.000946]
[1717762099647,0.71203893,71870.0,71869.0,0.000946]
[1717762100064,0.139168,71856.0,71844.0,0.1]
[1717762100271,0.278299,71866.0,71853.0,0.43336945]
[1717762100272,0.00282275,71855.0,71853.0,0.43336945]
[1717762100494,0.00282275,71864.0,71846.0,0.07222824]
[1717762100892,0.00282275,71864.0,71862.0,0.07222824]
[1717762101099,0.278254,71877.0,71862.0,0.07222824]
[1717762101100,0.04159021,71879.0,71867.0,0.1]
[1717762101307,0.04159021,71879.0,71874.0,0.07222824]
[1717762101308,0.00282275,71879.0,71874.0,0.07222824]
[1717762101503,0.139122,71880.0,71874.0,0.07222824]
[1717762101918,0.278192,71893.0,71874.0,0.07222824]
[1717762101919,0.139114,71884.0,71874.0,0.07222824]
[1717762102333,0.14441893,71875.0,71874.0,0.07222824]
[1717762102550,0.14441893,71875.0,71874.0,0.17822824]
[1717762102749,0.14441893,71875.0,71874.0,0.1694]
[1717762102971,0.14441893,71875.0,71873.0,0.07215183]
[1717762103189,0.139115,71883.0,71874.0,0.006]
[1717762103632,0.001,71884.0,71874.0,0.006]
[1717762103852,0.1462,71880.0,71874.0,0.006]
[1717762104073,0.07590072,71883.0,71874.0,0.006]
[1717762104074,0.1462,71878.0,71874.0,0.006]
[1717762104290,0.14441893,71875.0,71874.0,0.006]
[1717762104886,0.42974893,71875.0,71874.0,0.014]
[1717762105290,0.139144,71868.0,71855.0,0.1]
[1717762105499,0.29045154,71875.0,71855.0,0.1]
[1717762105500,0.14441893,71856.0,71855.0,0.1]
[1717762105895,0.14441893,71856.0,71849.0,0.1644]
[1717762105896,0.14441893,71856.0,71852.0,0.07215183]
[1717762106103,0.1462,71874.0,71850.0,0.1]
[1717762106104,0.14441893,71853.0,71850.0,0.1]
[1717762106349,0.14441893,71851.0,71850.0,0.17215183]
[1717762106551,0.14441893,71851.0,71850.0,0.1]
[1717762107329,0.14441893,71851.0,71846.0,0.07222824]
[1717762107530,0.14441893,71847.0,71846.0,0.07222824]
[1717762108950,0.14541893,71847.0,71846.0,0.08022824]
[1717762109175,0.14641893,71847.0,71846.0,0.09022824]
[1717762110587,0.14641893,71847.0,71846.0,0.018]
[1717762111007,0.14541893,71847.0,71846.0,0.01]
[1717762111216,0.14641893,71847.0,71846.0,0.018]
[1717762111418,0.14641893,71847.0,71846.0,0.008]
[1717762111419,0.14541893,71847.0,71846.0,0.008]
[1717762111776,0.14541893,71847.0,71846.0,0.018]
[1717762111777,0.14641893,71847.0,71846.0,0.018]
[1717762111973,0.14641893,71847.0,71846.0,0.01]
[1717762111974,0.28360293,71847.0,71846.0,0.01]
[1717762112357,0.28460293,71847.0,71846.0,0.018]
[1717762112559,0.28460293,71847.0,71846.0,0.008]
[1717762112764,0.28360293,71847.0,71833.0,0.1]
[1717762112973,0.28360293,71847.0,71838.0,0.07222824]
[1717762112974,0.00282275,71846.0,71838.0,0.07222824]
[1717762113274,0.139189,71845.0,71838.0,0.07222824]
[1717762113495,0.00282275,71844.0,71833.0,0.1]
[1717762113695,0.00282275,71844.0,71837.0,0.07222824]
[1717762114149,0.139195,71842.0,71837.0,0.07222824]
[1717762114371,0.00282275,71841.0,71837.0,0.07222824]
[1717762115056,0.14441893,71838.0,71830.0,8e-05]
[1717762115252,0.14441893,71831.0,71830.0,0.10008]
[1717762116329,0.14441893,71831.0,71830.0,8e-05]
[1717762116535,0.14441893,71831.0,71830.0,0.00921136]
[1717762116946,0.14441893,71831.0,71830.0,8e-05]
[1717762118804,0.14441893,71831.0,71830.0,0.00508]
[1717762119015,0.14541893,71831.0,71830.0,0.01508]
[1717762119218,0.14441893,71831.0,71830.0,0.00508]
[1717762119643,0.14441893,71831.0,71830.0,0.01108]
[1717762119644,0.14541893,71831.0,71830.0,0.01108]
[1717762121037,0.14541893,71831.0,71830.0,0.09158]
[1717762121408,0.14541893,71831.0,71830.0,0.09794261]
[1717762122017,0.14541893,71831.0,71830.0,0.01744261]
[1717762125777,0.14541893,71831.0,71830.0,0.24944261]
[1717762126338,0.14541893,71831.0,71830.0,0.42159444]